[Event "Titled Tuesday Blitz November 15 Early 2022"]
[White "Matveeva, Olga"]
[Black "Tan, Jun Ying"]
[WhiteFideId "24107018"]
[BlackFideId "5710413"]
[WhiteElo "2055"]
[BlackElo "2089"]
[Result "0-1"]
[Round "03"]
[TimeControl "180+1"]
[Date "2022.11.16"]
[WhiteClock "0:00:04"]
[BlackClock "0:00:23"]

1. d4 {[%clk 0:03:00]}  Nf6 {[%clk 0:02:59]} 2. c4 {[%clk 0:03:01]}  e6 {[%clk 0:02:59]} 3. g3 {[%clk 0:03:02]}  c5 {[%clk 0:02:57]} 4. d5 {[%clk 0:03:01]}  exd5 {[%clk 0:02:58]} 5. cxd5 {[%clk 0:03:02]}  d6 {[%clk 0:02:58]} 6. Nc3 {[%clk 0:03:03]}  g6 {[%clk 0:02:59]} 7. Nf3 {[%clk 0:03:03]}  Bg7 {[%clk 0:03:00]} 8. Bg2 {[%clk 0:03:04]}  O-O {[%clk 0:03:01]} 9. O-O {[%clk 0:03:04]}  Re8 {[%clk 0:03:02]} 10. Nd2 {[%clk 0:03:03]}  b6 {[%clk 0:02:58]} 11. a4 {[%clk 0:03:03]}  Nbd7 {[%clk 0:02:56]} 12. h3 {[%clk 0:03:02]}  a6 {[%clk 0:02:51]} 13. Qc2 {[%clk 0:02:40]}  Rb8 {[%clk 0:02:47]} 14. Nc4 {[%clk 0:02:31]}  Ne5 {[%clk 0:02:46]} 15. Na3 {[%clk 0:02:19]}  Nh5 {[%clk 0:02:46]} 16. e4 {[%clk 0:02:13]}  Bd7 {[%clk 0:02:34]} 17. f4 {[%clk 0:02:11]}  Nxg3 {[%clk 0:02:32]} 18. fxe5 {[%clk 0:02:10]}  Nxf1 {[%clk 0:02:31]} 19. Bxf1 {[%clk 0:02:03]}  Bxe5 {[%clk 0:02:26]} 20. Nc4 {[%clk 0:02:03]}  Bd4+ {[%clk 0:02:24]} 21. Be3 {[%clk 0:01:59]}  Qg5+ {[%clk 0:02:11]} 22. Kf2 {[%clk 0:01:54]}  Qh4+ {[%clk 0:01:49]} 23. Ke2 {[%clk 0:01:53]}  Bxe3 {[%clk 0:01:46]} 24. Nxe3 {[%clk 0:01:48]}  Bxh3 {[%clk 0:01:43]} 25. Bxh3 {[%clk 0:01:46]}  Qxh3 {[%clk 0:01:44]} 26. Rf1 {[%clk 0:01:43]}  f5 {[%clk 0:01:42]} 27. Kd2 {[%clk 0:01:32]}  Qh2+ {[%clk 0:01:30]} 28. Kc1 {[%clk 0:01:24]}  Qh6 {[%clk 0:01:05]} 29. Qf2 {[%clk 0:01:17]}  b5 {[%clk 0:01:01]} 30. axb5 {[%clk 0:01:11]}  axb5 {[%clk 0:01:02]} 31. Kb1 {[%clk 0:01:09]}  b4 {[%clk 0:01:00]} 32. Ng4 {[%clk 0:00:29]}  fxg4 {[%clk 0:00:47]} 33. Qf7+ {[%clk 0:00:28]}  Kh8 {[%clk 0:00:47]} 34. Nb5 {[%clk 0:00:21]}  Qg7 {[%clk 0:00:45]} 35. Nxd6 {[%clk 0:00:13]}  Qxf7 {[%clk 0:00:44]} 36. Nxf7+ {[%clk 0:00:14]}  Kg7 {[%clk 0:00:44]} 37. e5 {[%clk 0:00:14]}  g3 {[%clk 0:00:32]} 38. e6 {[%clk 0:00:14]}  h5 {[%clk 0:00:29]} 39. Ng5 {[%clk 0:00:12]}  Rbd8 {[%clk 0:00:25]} 40. Rf7+ {[%clk 0:00:09]}  Kh6 {[%clk 0:00:25]} 41. Ne4 {[%clk 0:00:04]}  g2 {[%clk 0:00:23]} 0-1


[Site "https://www.chess.com"]

[Event "Titled Tuesday Blitz November 15 Early 2022"]
[White "Melaugh, Shane"]
[Black "Stijve, Theo"]
[WhiteFideId "2509580"]
[BlackFideId "1331132"]
[WhiteElo "2025"]
[BlackElo "2256"]
[Result "1/2-1/2"]
[Round "03"]
[TimeControl "180+1"]
[Date "2022.11.16"]
[WhiteClock "0:00:06"]
[BlackClock "0:00:24"]

1. c4 {[%clk 0:02:59]}  e5 {[%clk 0:02:58]} 2. Nc3 {[%clk 0:02:59]}  Be7 {[%clk 0:02:53]} 3. g3 {[%clk 0:02:49]}  f5 {[%clk 0:02:51]} 4. Bg2 {[%clk 0:02:38]}  Nf6 {[%clk 0:02:51]} 5. d3 {[%clk 0:02:37]}  O-O {[%clk 0:02:49]} 6. Nf3 {[%clk 0:02:37]}  d6 {[%clk 0:02:49]} 7. Bg5 {[%clk 0:02:36]}  Nbd7 {[%clk 0:02:34]} 8. O-O {[%clk 0:02:29]}  Qe8 {[%clk 0:02:32]} 9. Bxf6 {[%clk 0:02:20]}  Nxf6 {[%clk 0:02:31]} 10. Nd5 {[%clk 0:02:20]}  Nxd5 {[%clk 0:02:22]} 11. cxd5 {[%clk 0:02:21]}  Bd7 {[%clk 0:02:17]} 12. Rc1 {[%clk 0:02:20]}  c5 {[%clk 0:02:17]} 13. dxc6 {[%clk 0:02:18]}  Bxc6 {[%clk 0:02:17]} 14. Nd2 {[%clk 0:01:58]}  Bxg2 {[%clk 0:02:09]} 15. Kxg2 {[%clk 0:01:59]}  Qd7 {[%clk 0:01:54]} 16. Qb3+ {[%clk 0:01:36]}  Kh8 {[%clk 0:01:52]} 17. Qd5 {[%clk 0:01:35]}  Rac8 {[%clk 0:01:47]} 18. Nc4 {[%clk 0:01:33]}  Qc6 {[%clk 0:01:44]} 19. Ne3 {[%clk 0:01:25]}  Qxd5+ {[%clk 0:01:35]} 20. Nxd5 {[%clk 0:01:25]}  Bg5 {[%clk 0:01:34]} 21. f4 {[%clk 0:01:21]}  exf4 {[%clk 0:01:32]} 22. gxf4 {[%clk 0:01:19]}  Bh4 {[%clk 0:01:27]} 23. Kf3 {[%clk 0:01:15]}  Kg8 {[%clk 0:01:22]} 24. e3 {[%clk 0:00:48]}  Kf7 {[%clk 0:01:20]} 25. Rg1 {[%clk 0:00:32]}  Bf6 {[%clk 0:01:18]} 26. Nxf6 {[%clk 0:00:26]}  Kxf6 {[%clk 0:01:18]} 27. Rc3 {[%clk 0:00:23]}  Rxc3 {[%clk 0:01:17]} 28. bxc3 {[%clk 0:00:24]}  h6 {[%clk 0:01:15]} 29. Rb1 {[%clk 0:00:24]}  Rf7 {[%clk 0:01:15]} 30. c4 {[%clk 0:00:24]}  g5 {[%clk 0:01:14]} 31. Rb5 {[%clk 0:00:20]}  g4+ {[%clk 0:01:12]} 32. Kf2 {[%clk 0:00:20]}  Re7 {[%clk 0:01:10]} 33. Rd5 {[%clk 0:00:19]}  Ke6 {[%clk 0:01:09]} 34. e4 {[%clk 0:00:19]}  fxe4 {[%clk 0:01:08]} 35. dxe4 {[%clk 0:00:19]}  Rc7 {[%clk 0:01:05]} 36. Rh5 {[%clk 0:00:17]}  Rxc4 {[%clk 0:01:04]} 37. Rxh6+ {[%clk 0:00:17]}  Kd7 {[%clk 0:01:04]} 38. Ke3 {[%clk 0:00:17]}  Rc2 {[%clk 0:01:02]} 39. f5 {[%clk 0:00:15]}  Rxa2 {[%clk 0:01:01]} 40. Kf4 {[%clk 0:00:16]}  b5 {[%clk 0:00:58]} 41. Rh7+ {[%clk 0:00:14]}  Kc6 {[%clk 0:00:57]} 42. f6 {[%clk 0:00:14]}  Rf2+ {[%clk 0:00:53]} 43. Kg5 {[%clk 0:00:15]}  b4 {[%clk 0:00:53]} 44. Rxa7 {[%clk 0:00:14]}  Rxh2 {[%clk 0:00:52]} 45. Kxg4 {[%clk 0:00:15]}  Rf2 {[%clk 0:00:50]} 46. f7 {[%clk 0:00:14]}  b3 {[%clk 0:00:51]} 47. Kg3 {[%clk 0:00:12]}  Rf1 {[%clk 0:00:46]} 48. Kg2 {[%clk 0:00:12]}  Rf6 {[%clk 0:00:46]} 49. Ra3 {[%clk 0:00:12]}  b2 {[%clk 0:00:40]} 50. Rb3 {[%clk 0:00:12]}  Rxf7 {[%clk 0:00:40]} 51. Rxb2 {[%clk 0:00:12]}  Kc5 {[%clk 0:00:40]} 52. Rd2 {[%clk 0:00:12]}  Rf4 {[%clk 0:00:38]} 53. Rd5+ {[%clk 0:00:11]}  Kc6 {[%clk 0:00:39]} 54. Rd4 {[%clk 0:00:12]}  Kc5 {[%clk 0:00:39]} 55. Rd5+ {[%clk 0:00:12]}  Kc6 {[%clk 0:00:39]} 56. Rd4 {[%clk 0:00:13]}  Rf8 {[%clk 0:00:34]} 57. Kg3 {[%clk 0:00:13]}  Rf7 {[%clk 0:00:34]} 58. Rd5 {[%clk 0:00:12]}  Rf1 {[%clk 0:00:27]} 59. Rd4 {[%clk 0:00:12]}  Rf6 {[%clk 0:00:26]} 60. Rd5 {[%clk 0:00:12]}  Kc7 {[%clk 0:00:25]} 61. Rd4 {[%clk 0:00:13]}  Kb6 {[%clk 0:00:25]} 62. Rd5 {[%clk 0:00:13]}  Kc6 {[%clk 0:00:26]} 63. Kg4 {[%clk 0:00:13]}  Re6 {[%clk 0:00:25]} 64. Rd4 {[%clk 0:00:13]}  Kc5 {[%clk 0:00:25]} 65. Rd5+ {[%clk 0:00:13]}  Kc4 {[%clk 0:00:25]} 66. Kf4 {[%clk 0:00:13]}  Rh6 {[%clk 0:00:21]} 67. Ke3 {[%clk 0:00:11]}  Rh3+ {[%clk 0:00:19]} 68. Kf4 {[%clk 0:00:12]}  Rh6 {[%clk 0:00:19]} 69. Ke3 {[%clk 0:00:11]}  Rf6 {[%clk 0:00:20]} 70. Rd4+ {[%clk 0:00:11]}  Kc5 {[%clk 0:00:19]} 71. Rd5+ {[%clk 0:00:11]}  Kc6 {[%clk 0:00:20]} 72. Rg5 {[%clk 0:00:10]}  Re6 {[%clk 0:00:19]} 73. Kd4 {[%clk 0:00:10]}  Rf6 {[%clk 0:00:19]} 74. Ra5 {[%clk 0:00:10]}  Rf1 {[%clk 0:00:19]} 75. Ra6+ {[%clk 0:00:11]}  Kd7 {[%clk 0:00:19]} 76. Ra5 {[%clk 0:00:10]}  Ke6 {[%clk 0:00:19]} 77. Rh5 {[%clk 0:00:11]}  Rd1+ {[%clk 0:00:19]} 78. Ke3 {[%clk 0:00:11]}  Ra1 {[%clk 0:00:20]} 79. Rh6+ {[%clk 0:00:11]}  Kd7 {[%clk 0:00:21]} 80. Kd4 {[%clk 0:00:11]}  Ra4+ {[%clk 0:00:22]} 81. Kd3 {[%clk 0:00:12]}  Kc6 {[%clk 0:00:22]} 82. Rh5 {[%clk 0:00:12]}  Rb4 {[%clk 0:00:22]} 83. Ra5 {[%clk 0:00:10]}  Rb1 {[%clk 0:00:21]} 84. Kd4 {[%clk 0:00:10]}  Rd1+ {[%clk 0:00:21]} 85. Kc4 {[%clk 0:00:10]}  Rh1 {[%clk 0:00:22]} 86. Ra6+ {[%clk 0:00:10]}  Kd7 {[%clk 0:00:23]} 87. Kd5 {[%clk 0:00:10]}  Rd1+ {[%clk 0:00:23]} 88. Kc4 {[%clk 0:00:11]}  Ke6 {[%clk 0:00:24]} 89. Ra5 {[%clk 0:00:12]}  Rd2 {[%clk 0:00:24]} 90. Rh5 {[%clk 0:00:11]}  Re2 {[%clk 0:00:24]} 91. Kd4 {[%clk 0:00:12]}  Rd2+ {[%clk 0:00:23]} 92. Ke3 {[%clk 0:00:12]}  Ra2 {[%clk 0:00:24]} 93. Kd4 {[%clk 0:00:12]}  Ra4+ {[%clk 0:00:24]} 94. Kd3 {[%clk 0:00:13]}  Kd7 {[%clk 0:00:24]} 95. Rb5 {[%clk 0:00:09]}  Kc6 {[%clk 0:00:24]} 96. Rh5 {[%clk 0:00:08]}  Ra3+ {[%clk 0:00:24]} 97. Kd4 {[%clk 0:00:09]}  Ra1 {[%clk 0:00:25]} 98. Rg5 {[%clk 0:00:08]}  Rd1+ {[%clk 0:00:25]} 99. Ke3 {[%clk 0:00:07]}  Ra1 {[%clk 0:00:25]} 100. Rd5 {[%clk 0:00:06]}  Ra3+ {[%clk 0:00:24]} 101. Kd4 {[%clk 0:00:06]} 1/2-1/2


[Site "https://www.chess.com"]

[Event "Titled Tuesday Blitz November 15 Early 2022"]
[White "Melian, Juan Sebastian"]
[Black "Kovalev, Vladislav"]
[WhiteFideId "3706575"]
[BlackFideId "13504398"]
[WhiteElo "2576"]
[BlackElo "2855"]
[Result "1/2-1/2"]
[Round "03"]
[TimeControl "180+1"]
[Date "2022.11.16"]
[WhiteClock "0:00:04"]
[BlackClock "0:00:05"]

1. d4 {[%clk 0:02:56]}  Nf6 {[%clk 0:02:59]} 2. c4 {[%clk 0:02:56]}  e6 {[%clk 0:03:00]} 3. Nc3 {[%clk 0:02:56]}  Bb4 {[%clk 0:03:00]} 4. Qc2 {[%clk 0:02:57]}  b6 {[%clk 0:02:59]} 5. Nf3 {[%clk 0:02:32]}  Bb7 {[%clk 0:02:57]} 6. e3 {[%clk 0:02:31]}  O-O {[%clk 0:02:49]} 7. Be2 {[%clk 0:02:27]}  Ne4 {[%clk 0:02:43]} 8. O-O {[%clk 0:02:22]}  Bxc3 {[%clk 0:02:43]} 9. bxc3 {[%clk 0:02:22]}  d6 {[%clk 0:02:43]} 10. Ne1 {[%clk 0:02:21]}  f5 {[%clk 0:02:42]} 11. f3 {[%clk 0:02:20]}  Nf6 {[%clk 0:02:42]} 12. Rb1 {[%clk 0:02:16]}  Nbd7 {[%clk 0:02:41]} 13. Nd3 {[%clk 0:02:11]}  e5 {[%clk 0:02:35]} 14. c5 {[%clk 0:01:57]}  e4 {[%clk 0:02:19]} 15. Nf4 {[%clk 0:01:56]}  dxc5 {[%clk 0:02:16]} 16. Ne6 {[%clk 0:01:46]}  Qe7 {[%clk 0:02:09]} 17. Nxf8 {[%clk 0:01:44]}  Rxf8 {[%clk 0:02:10]} 18. f4 {[%clk 0:01:38]}  Rd8 {[%clk 0:01:54]} 19. Ba3 {[%clk 0:01:35]}  Nd5 {[%clk 0:01:50]} 20. Bc4 {[%clk 0:01:35]}  Kh8 {[%clk 0:01:47]} 21. Bxd5 {[%clk 0:01:34]}  Bxd5 {[%clk 0:01:48]} 22. c4 {[%clk 0:01:35]}  Bb7 {[%clk 0:01:48]} 23. Rbd1 {[%clk 0:01:30]}  Re8 {[%clk 0:01:39]} 24. dxc5 {[%clk 0:00:59]}  Nxc5 {[%clk 0:01:39]} 25. Qc3 {[%clk 0:00:58]}  Bc6 {[%clk 0:01:34]} 26. Rd2 {[%clk 0:00:33]}  h6 {[%clk 0:01:33]} 27. Qd4 {[%clk 0:00:24]}  Kh7 {[%clk 0:01:29]} 28. Rfd1 {[%clk 0:00:23]}  Ba4 {[%clk 0:01:25]} 29. Rb1 {[%clk 0:00:17]}  Ne6 {[%clk 0:01:13]} 30. Bxe7 {[%clk 0:00:18]}  Nxd4 {[%clk 0:01:14]} 31. Rxd4 {[%clk 0:00:14]}  Rxe7 {[%clk 0:01:14]} 32. Rc1 {[%clk 0:00:11]}  Kg6 {[%clk 0:01:07]} 33. Kf2 {[%clk 0:00:11]}  Kf6 {[%clk 0:01:07]} 34. Ke1 {[%clk 0:00:11]}  g5 {[%clk 0:01:05]} 35. g3 {[%clk 0:00:10]}  gxf4 {[%clk 0:01:04]} 36. gxf4 {[%clk 0:00:11]}  Rg7 {[%clk 0:01:03]} 37. Kf2 {[%clk 0:00:11]}  Ke6 {[%clk 0:01:02]} 38. Rg1 {[%clk 0:00:11]}  Rxg1 {[%clk 0:00:56]} 39. Kxg1 {[%clk 0:00:12]}  Bc2 {[%clk 0:00:56]} 40. c5 {[%clk 0:00:11]}  Bd3 {[%clk 0:00:51]} 41. cxb6 {[%clk 0:00:10]}  axb6 {[%clk 0:00:49]} 42. Kf2 {[%clk 0:00:10]}  c5 {[%clk 0:00:46]} 43. Rd8 {[%clk 0:00:10]}  b5 {[%clk 0:00:44]} 44. Ke1 {[%clk 0:00:10]}  b4 {[%clk 0:00:44]} 45. Rc8 {[%clk 0:00:08]}  Kd5 {[%clk 0:00:43]} 46. Kd2 {[%clk 0:00:08]}  c4 {[%clk 0:00:43]} 47. Rd8+ {[%clk 0:00:06]}  Kc5 {[%clk 0:00:43]} 48. Rc8+ {[%clk 0:00:06]}  Kb5 {[%clk 0:00:42]} 49. Rb8+ {[%clk 0:00:07]}  Ka4 {[%clk 0:00:42]} 50. Rb6 {[%clk 0:00:07]}  Ka3 {[%clk 0:00:38]} 51. Kc1 {[%clk 0:00:06]}  b3 {[%clk 0:00:09]} 52. axb3 {[%clk 0:00:07]}  cxb3 {[%clk 0:00:10]} 53. Rb7 {[%clk 0:00:07]}  h5 {[%clk 0:00:08]} 54. Rb8 {[%clk 0:00:06]}  h4 {[%clk 0:00:03]} 55. Rb7 {[%clk 0:00:06]}  h3 {[%clk 0:00:03]} 56. Ra7+ {[%clk 0:00:05]}  Kb4 {[%clk 0:00:04]} 57. Kb2 {[%clk 0:00:06]}  Bc2 {[%clk 0:00:04]} 58. Rf7 {[%clk 0:00:05]}  Kc4 {[%clk 0:00:04]} 59. Rxf5 {[%clk 0:00:06]}  Kd3 {[%clk 0:00:05]} 60. Rh5 {[%clk 0:00:04]}  Kxe3 {[%clk 0:00:06]} 61. Rxh3+ {[%clk 0:00:05]}  Kxf4 {[%clk 0:00:06]} 62. Kc3 {[%clk 0:00:05]}  e3 {[%clk 0:00:06]} 63. Rh8 {[%clk 0:00:05]}  e2 {[%clk 0:00:07]} 64. Re8 {[%clk 0:00:06]}  Be4 {[%clk 0:00:05]} 65. Kd2 {[%clk 0:00:06]}  b2 {[%clk 0:00:01]} 66. Rb8 {[%clk 0:00:06]}  Kf3 {[%clk 0:00:02]} 67. Rxb2 {[%clk 0:00:04]}  Kf2 {[%clk 0:00:03]} 68. Kc3 {[%clk 0:00:03]}  Kf3 {[%clk 0:00:03]} 69. Kd2 {[%clk 0:00:02]}  Kf2 {[%clk 0:00:03]} 70. Kc3 {[%clk 0:00:02]}  Ke3 {[%clk 0:00:04]} 71. Rxe2+ {[%clk 0:00:02]}  Kxe2 {[%clk 0:00:05]} 72. h4 {[%clk 0:00:03]}  Bg6 {[%clk 0:00:04]} 73. h5 {[%clk 0:00:04]}  Bxh5 {[%clk 0:00:05]} 1/2-1/2


[Site "https://www.chess.com"]

[Event "Titled Tuesday Blitz November 15 Early 2022"]
[White "Mihailidis, Anastasios"]
[Black "Seifert, Henryk"]
[WhiteFideId "4205588"]
[BlackFideId "1100963"]
[WhiteElo "2312"]
[BlackElo "2120"]
[Result "1-0"]
[Round "03"]
[TimeControl "180+1"]
[Date "2022.11.16"]
[WhiteClock "0:01:58"]
[BlackClock "0:00:12"]

1. e4 {[%clk 0:03:00]}  e6 {[%clk 0:02:59]} 2. d4 {[%clk 0:03:00]}  d5 {[%clk 0:03:00]} 3. Nd2 {[%clk 0:03:00]}  c5 {[%clk 0:02:58]} 4. exd5 {[%clk 0:03:00]}  exd5 {[%clk 0:02:59]} 5. Bb5+ {[%clk 0:02:59]}  Nc6 {[%clk 0:02:59]} 6. Ngf3 {[%clk 0:02:59]}  Bd6 {[%clk 0:02:59]} 7. dxc5 {[%clk 0:02:57]}  Bxc5 {[%clk 0:03:00]} 8. O-O {[%clk 0:02:58]}  Ne7 {[%clk 0:03:00]} 9. Nb3 {[%clk 0:02:58]}  Bb6 {[%clk 0:02:58]} 10. Re1 {[%clk 0:02:58]}  O-O {[%clk 0:02:58]} 11. Bd3 {[%clk 0:02:56]}  Bf5 {[%clk 0:02:50]} 12. Bg5 {[%clk 0:02:50]}  Qd7 {[%clk 0:02:38]} 13. Bxe7 {[%clk 0:02:46]}  Bxd3 {[%clk 0:02:00]} 14. Bxf8 {[%clk 0:02:43]}  Bxc2 {[%clk 0:01:59]} 15. Qxc2 {[%clk 0:02:39]}  Rxf8 {[%clk 0:01:58]} 16. Rad1 {[%clk 0:02:36]}  Rd8 {[%clk 0:01:50]} 17. Ne5 {[%clk 0:02:31]}  Nxe5 {[%clk 0:01:37]} 18. Rxe5 {[%clk 0:02:30]}  d4 {[%clk 0:01:25]} 19. Qf5 {[%clk 0:02:14]}  Qc6 {[%clk 0:00:53]} 20. Qe4 {[%clk 0:02:07]}  g6 {[%clk 0:00:27]} 21. Qxc6 {[%clk 0:02:05]}  bxc6 {[%clk 0:00:28]} 22. a4 {[%clk 0:01:59]}  d3 {[%clk 0:00:16]} 23. a5 {[%clk 0:01:58]}  Bc7 {[%clk 0:00:14]} 24. Re3 {[%clk 0:01:58]}  c5 {[%clk 0:00:13]} 25. Rexd3 {[%clk 0:01:57]}  Rxd3 {[%clk 0:00:12]} 26. Rxd3 {[%clk 0:01:58]}  c4 {[%clk 0:00:12]} 27. Rc3 {[%clk 0:01:58]} 1-0


[Site "https://www.chess.com"]

[Event "Titled Tuesday Blitz November 15 Early 2022"]
[White "Mitrabha, Guha"]
[Black "Papasimakopoulos, Alexandros"]
[WhiteFideId "5057000"]
[BlackFideId "4244125"]
[WhiteElo "2526"]
[BlackElo "2365"]
[Result "0-1"]
[Round "03"]
[TimeControl "180+1"]
[Date "2022.11.15"]
[WhiteClock "0:00:20"]
[BlackClock "0:00:35"]

1. Nf3 {[%clk 0:02:41]}  d5 {[%clk 0:02:58]} 2. c4 {[%clk 0:02:42]}  e6 {[%clk 0:02:58]} 3. d4 {[%clk 0:02:41]}  Nf6 {[%clk 0:02:54]} 4. g3 {[%clk 0:02:41]}  Bb4+ {[%clk 0:02:53]} 5. Nbd2 {[%clk 0:02:41]}  O-O {[%clk 0:02:53]} 6. Bg2 {[%clk 0:02:41]}  Ne4 {[%clk 0:02:36]} 7. O-O {[%clk 0:02:40]}  Nxd2 {[%clk 0:02:36]} 8. Bxd2 {[%clk 0:02:40]}  Bxd2 {[%clk 0:02:36]} 9. Qxd2 {[%clk 0:02:41]}  Nd7 {[%clk 0:02:36]} 10. Rac1 {[%clk 0:02:40]}  c6 {[%clk 0:02:37]} 11. b4 {[%clk 0:02:35]}  a6 {[%clk 0:02:35]} 12. a4 {[%clk 0:02:34]}  dxc4 {[%clk 0:02:32]} 13. a5 {[%clk 0:02:29]}  b5 {[%clk 0:02:26]} 14. axb6 {[%clk 0:02:29]}  Nxb6 {[%clk 0:02:27]} 15. Ne5 {[%clk 0:02:29]}  Bb7 {[%clk 0:02:27]} 16. Nxc4 {[%clk 0:02:26]}  Nxc4 {[%clk 0:02:25]} 17. Rxc4 {[%clk 0:02:27]}  Qb6 {[%clk 0:02:23]} 18. Rfc1 {[%clk 0:02:25]}  Rfc8 {[%clk 0:02:23]} 19. e3 {[%clk 0:02:22]}  a5 {[%clk 0:02:15]} 20. bxa5 {[%clk 0:02:22]}  Qxa5 {[%clk 0:02:15]} 21. Qxa5 {[%clk 0:02:15]}  Rxa5 {[%clk 0:02:16]} 22. Rb4 {[%clk 0:02:09]}  Ra7 {[%clk 0:02:12]} 23. Bxc6 {[%clk 0:01:56]}  g6 {[%clk 0:02:01]} 24. Rbc4 {[%clk 0:01:55]}  Bxc6 {[%clk 0:01:51]} 25. Rxc6 {[%clk 0:01:56]}  Rxc6 {[%clk 0:01:52]} 26. Rxc6 {[%clk 0:01:56]}  h5 {[%clk 0:01:52]} 27. Kg2 {[%clk 0:01:55]}  Kg7 {[%clk 0:01:40]} 28. Kf3 {[%clk 0:01:55]}  Kf6 {[%clk 0:01:39]} 29. h3 {[%clk 0:01:55]}  Rb7 {[%clk 0:01:39]} 30. g4 {[%clk 0:01:55]}  hxg4+ {[%clk 0:01:39]} 31. hxg4 {[%clk 0:01:56]}  g5 {[%clk 0:01:40]} 32. Ke4 {[%clk 0:01:56]}  Rb5 {[%clk 0:01:38]} 33. f3 {[%clk 0:01:56]}  Ra5 {[%clk 0:01:38]} 34. Rc5 {[%clk 0:01:53]}  Ra3 {[%clk 0:01:37]} 35. Rc2 {[%clk 0:01:48]}  Ra5 {[%clk 0:01:36]} 36. Kd3 {[%clk 0:01:48]}  Ra3+ {[%clk 0:01:36]} 37. Rc3 {[%clk 0:01:47]}  Ra1 {[%clk 0:01:36]} 38. Kc4 {[%clk 0:01:46]}  Ke7 {[%clk 0:01:31]} 39. e4 {[%clk 0:01:45]}  Kd6 {[%clk 0:01:29]} 40. Kd3 {[%clk 0:01:44]}  Ke7 {[%clk 0:01:29]} 41. Rb3 {[%clk 0:01:43]}  Rf1 {[%clk 0:01:27]} 42. Ke3 {[%clk 0:01:43]}  Rd1 {[%clk 0:01:25]} 43. Rb7+ {[%clk 0:01:42]}  Kf6 {[%clk 0:01:25]} 44. Rd7 {[%clk 0:01:41]}  Ra1 {[%clk 0:01:24]} 45. e5+ {[%clk 0:01:12]}  Kg6 {[%clk 0:01:18]} 46. Rd6 {[%clk 0:01:11]}  Kg7 {[%clk 0:01:18]} 47. Kd3 {[%clk 0:01:10]}  Ra3+ {[%clk 0:01:18]} 48. Ke4 {[%clk 0:01:10]}  Ra1 {[%clk 0:01:17]} 49. Rb6 {[%clk 0:01:06]}  Re1+ {[%clk 0:01:17]} 50. Kd3 {[%clk 0:01:06]}  Rd1+ {[%clk 0:01:17]} 51. Ke3 {[%clk 0:01:05]}  Re1+ {[%clk 0:01:17]} 52. Kd2 {[%clk 0:01:05]}  Rf1 {[%clk 0:01:17]} 53. Ke2 {[%clk 0:01:05]}  Ra1 {[%clk 0:01:18]} 54. Rb7 {[%clk 0:01:04]}  Ra2+ {[%clk 0:01:16]} 55. Ke3 {[%clk 0:01:05]}  Ra3+ {[%clk 0:01:14]} 56. Ke4 {[%clk 0:01:05]}  Ra1 {[%clk 0:01:14]} 57. Kd3 {[%clk 0:00:59]}  Rd1+ {[%clk 0:01:11]} 58. Kc4 {[%clk 0:00:54]}  Rc1+ {[%clk 0:01:12]} 59. Kb5 {[%clk 0:00:54]}  Rf1 {[%clk 0:01:09]} 60. Kc6 {[%clk 0:00:47]}  Rxf3 {[%clk 0:01:09]} 61. d5 {[%clk 0:00:48]}  Rc3+ {[%clk 0:01:05]} 62. Kd7 {[%clk 0:00:46]}  exd5 {[%clk 0:01:05]} 63. Kd6 {[%clk 0:00:45]}  Kg6 {[%clk 0:00:59]} 64. Kxd5 {[%clk 0:00:36]}  Rf3 {[%clk 0:00:47]} 65. Rb6+ {[%clk 0:00:35]}  Kg7 {[%clk 0:00:46]} 66. Rb4 {[%clk 0:00:35]}  Kg6 {[%clk 0:00:45]} 67. Kd6 {[%clk 0:00:35]}  Rf4 {[%clk 0:00:43]} 68. Kc5 {[%clk 0:00:31]}  Rxb4 {[%clk 0:00:31]} 69. Kxb4 {[%clk 0:00:31]}  f5 {[%clk 0:00:32]} 70. exf6 {[%clk 0:00:29]}  Kxf6 {[%clk 0:00:33]} 71. Kc4 {[%clk 0:00:20]}  Ke5 {[%clk 0:00:33]} 72. Kd3 {[%clk 0:00:20]}  Kf4 {[%clk 0:00:34]} 73. Ke2 {[%clk 0:00:20]}  Kxg4 {[%clk 0:00:35]} 74. Kf1 {[%clk 0:00:20]}  Kh3 {[%clk 0:00:35]} 75. Kg1 {[%clk 0:00:20]}  Kg3 {[%clk 0:00:36]} 76. Kf1 {[%clk 0:00:20]}  Kh2 {[%clk 0:00:35]} 0-1


[Site "https://www.chess.com"]

[Event "Titled Tuesday Blitz November 15 Early 2022"]
[White "Mohamed Anees M"]
[Black "Concio, Michael Jr."]
[WhiteFideId "35065815"]
[BlackFideId "5217873"]
[WhiteElo "2135"]
[BlackElo "2236"]
[Result "1-0"]
[Round "03"]
[TimeControl "180+1"]
[Date "2022.11.16"]
[WhiteClock "0:00:13"]
[BlackClock "0:00:02"]

1. e4 {[%clk 0:03:00]}  c5 {[%clk 0:02:59]} 2. Nf3 {[%clk 0:03:00]}  Nc6 {[%clk 0:02:59]} 3. Bb5 {[%clk 0:02:59]}  g6 {[%clk 0:02:58]} 4. Bxc6 {[%clk 0:02:59]}  bxc6 {[%clk 0:02:50]} 5. O-O {[%clk 0:02:55]}  Bg7 {[%clk 0:02:43]} 6. Nc3 {[%clk 0:02:52]}  Nf6 {[%clk 0:02:32]} 7. d3 {[%clk 0:02:48]}  O-O {[%clk 0:02:21]} 8. h3 {[%clk 0:02:48]}  d6 {[%clk 0:02:20]} 9. e5 {[%clk 0:02:47]}  Nd5 {[%clk 0:02:19]} 10. Re1 {[%clk 0:02:39]}  Qc7 {[%clk 0:01:39]} 11. Ne4 {[%clk 0:02:28]}  f5 {[%clk 0:01:10]} 12. exf6 {[%clk 0:02:16]}  Nxf6 {[%clk 0:00:58]} 13. c3 {[%clk 0:02:11]}  Rb8 {[%clk 0:00:54]} 14. Nxf6+ {[%clk 0:02:04]}  Bxf6 {[%clk 0:00:53]} 15. Bh6 {[%clk 0:01:56]}  Rf7 {[%clk 0:00:53]} 16. Qd2 {[%clk 0:01:52]}  e5 {[%clk 0:00:52]} 17. Ng5 {[%clk 0:01:51]}  Bxg5 {[%clk 0:00:37]} 18. Bxg5 {[%clk 0:01:50]}  Ba6 {[%clk 0:00:22]} 19. d4 {[%clk 0:01:48]}  cxd4 {[%clk 0:00:13]} 20. cxd4 {[%clk 0:01:48]}  exd4 {[%clk 0:00:08]} 21. Qxd4 {[%clk 0:01:46]}  c5 {[%clk 0:00:08]} 22. Qd2 {[%clk 0:01:17]}  Bb7 {[%clk 0:00:07]} 23. Re3 {[%clk 0:01:13]}  Qc6 {[%clk 0:00:06]} 24. f3 {[%clk 0:01:13]}  Re8 {[%clk 0:00:07]} 25. Rae1 {[%clk 0:01:12]}  Rxe3 {[%clk 0:00:04]} 26. Qxe3 {[%clk 0:01:13]}  Bc8 {[%clk 0:00:02]} 27. Bh6 {[%clk 0:01:09]}  Bd7 {[%clk 0:00:02]} 28. Qb3 {[%clk 0:01:03]}  Qc8 {[%clk 0:00:01]} 29. Qd5 {[%clk 0:00:57]}  Qc6 {[%clk 0:00:01]} 30. Rd1 {[%clk 0:00:38]}  Qxd5 {[%clk 0:00:01]} 31. Rxd5 {[%clk 0:00:39]}  Rf6 {[%clk 0:00:02]} 32. Bg5 {[%clk 0:00:33]}  Re6 {[%clk 0:00:02]} 33. Bf4 {[%clk 0:00:34]}  Bc6 {[%clk 0:00:03]} 34. Rxd6 {[%clk 0:00:34]}  Rxd6 {[%clk 0:00:04]} 35. Bxd6 {[%clk 0:00:34]}  c4 {[%clk 0:00:04]} 36. Kf2 {[%clk 0:00:34]}  Kf7 {[%clk 0:00:05]} 37. Ke3 {[%clk 0:00:33]}  Ke6 {[%clk 0:00:06]} 38. Bc5 {[%clk 0:00:33]}  a6 {[%clk 0:00:06]} 39. Bd4 {[%clk 0:00:33]}  Kd5 {[%clk 0:00:06]} 40. Bc3 {[%clk 0:00:33]}  Bd7 {[%clk 0:00:07]} 41. a3 {[%clk 0:00:32]}  Bf5 {[%clk 0:00:06]} 42. Kf4 {[%clk 0:00:32]}  Bd3 {[%clk 0:00:07]} 43. h4 {[%clk 0:00:32]}  Ke6 {[%clk 0:00:07]} 44. Kg5 {[%clk 0:00:30]}  h5 {[%clk 0:00:04]} 45. g4 {[%clk 0:00:25]}  Bc2 {[%clk 0:00:02]} 46. gxh5 {[%clk 0:00:19]}  gxh5 {[%clk 0:00:03]} 47. Kxh5 {[%clk 0:00:17]}  Kf5 {[%clk 0:00:04]} 48. Kh6 {[%clk 0:00:17]}  Bd1 {[%clk 0:00:03]} 49. Kg7 {[%clk 0:00:14]}  Bxf3 {[%clk 0:00:03]} 50. Kf7 {[%clk 0:00:14]}  Ke4 {[%clk 0:00:02]} 51. Ke6 {[%clk 0:00:14]}  Kd3 {[%clk 0:00:02]} 52. Kf5 {[%clk 0:00:13]}  Kc2 {[%clk 0:00:02]} 53. Kg5 {[%clk 0:00:14]}  Kd3 {[%clk 0:00:03]} 54. h5 {[%clk 0:00:14]}  Be4 {[%clk 0:00:02]} 55. h6 {[%clk 0:00:13]} 1-0


[Site "https://www.chess.com"]